[Event "Late-Titled-Tuesday-Blitz-February-13-2024"]
[Site "Chess.com"]
[Date "2024.02.13"]
[Round "2"]
[White "Hilary46"]
[Black "jcmesafischer"]
[Result "1-0"]
[WhiteElo "2615"]
[BlackElo "2350"]
[TimeControl "180+1"]
[EndTime "14:16:44 PST"]
[Termination "Hilary46 won by resignation"]

1. e4 {[%clk 0:02:56.3]} 1... c5 {[%clk 0:02:59.2]} 2. Nf3 {[%clk 0:02:56.7]}
2... d6 {[%clk 0:02:48.8]} 3. d4 {[%clk 0:02:55.5]} 3... cxd4 {[%clk 0:02:47.9]}
4. Nxd4 {[%clk 0:02:56.4]} 4... Nf6 {[%clk 0:02:46.8]} 5. Nc3 {[%clk 0:02:55.6]}
5... a6 {[%clk 0:02:46.9]} 6. Bg5 {[%clk 0:02:56]} 6... e6 {[%clk 0:02:45.7]} 7.
f4 {[%clk 0:02:56.2]} 7... Be7 {[%clk 0:02:43.4]} 8. Qf3 {[%clk 0:02:56.4]} 8...
Qc7 {[%clk 0:02:41.6]} 9. O-O-O {[%clk 0:02:56.8]} 9... Nbd7 {[%clk 0:02:41.5]}
10. Bd3 {[%clk 0:02:45.3]} 10... b5 {[%clk 0:02:40.3]} 11. Rhe1 {[%clk
0:02:44.5]} 11... Bb7 {[%clk 0:02:38.6]} 12. Qg3 {[%clk 0:02:44.3]} 12... b4
{[%clk 0:02:39.2]} 13. Nd5 {[%clk 0:02:42.5]} 13... exd5 {[%clk 0:02:40.1]} 14.
exd5 {[%clk 0:02:42.4]} 14... Kd8 {[%clk 0:02:39.3]} 15. Nc6+ {[%clk 0:02:42.7]}
15... Bxc6 {[%clk 0:02:36.6]} 16. dxc6 {[%clk 0:02:43.6]} 16... Nc5 {[%clk
0:02:37.3]} 17. Bf5 {[%clk 0:02:35.6]} 17... Qxc6 {[%clk 0:02:16.1]} 18. Bh4
{[%clk 0:02:34]} 18... g6 {[%clk 0:01:52.2]} 19. Rxe7 {[%clk 0:02:29.1]} 19...
Kxe7 {[%clk 0:01:48.3]} 20. Re1+ {[%clk 0:02:28.2]} 20... Kd8 {[%clk 0:01:04.3]}
21. Bxf6+ {[%clk 0:02:27.5]} 21... Kc7 {[%clk 0:01:03.4]} 22. Bxh8 {[%clk
0:02:25.2]} 22... Rxh8 {[%clk 0:01:04.3]} 23. Re7+ {[%clk 0:02:18]} 23... Kb6
{[%clk 0:00:55.4]} 24. Bd3 {[%clk 0:02:16.5]} 24... Re8 {[%clk 0:00:31.1]} 25.
Rxe8 {[%clk 0:01:56.6]} 25... Qxe8 {[%clk 0:00:31]} 26. Kd2 {[%clk 0:01:57.2]}
26... Qe6 {[%clk 0:00:29.1]} 27. b3 {[%clk 0:01:53.3]} 27... Qf6 {[%clk
0:00:28]} 28. Qe3 {[%clk 0:01:48.3]} 28... Qc3+ {[%clk 0:00:19.6]} 29. Ke2
{[%clk 0:01:48.4]} 29... f5 {[%clk 0:00:17.7]} 30. h3 {[%clk 0:01:38.1]} 30...
d5 {[%clk 0:00:17.7]} 31. g4 {[%clk 0:01:34.7]} 31... Kc6 {[%clk 0:00:05.8]} 32.
gxf5 {[%clk 0:01:33]} 32... gxf5 {[%clk 0:00:05.7]} 33. Bxf5 {[%clk 0:01:30.8]}
33... Qf6 {[%clk 0:00:05.8]} 34. Bxh7 {[%clk 0:01:25]} 34... Ne6 {[%clk
0:00:04.5]} 35. f5 {[%clk 0:01:12.9]} 35... Nd4+ {[%clk 0:00:04.5]} 36. Kd3
{[%clk 0:01:13.1]} 36... Nxf5 {[%clk 0:00:04]} 37. Bxf5 {[%clk 0:01:09.9]} 37...
Qxf5+ {[%clk 0:00:04.9]} 38. Kd2 {[%clk 0:01:09.9]} 38... Qf6 {[%clk 0:00:03.5]}
39. c3 {[%clk 0:01:03.1]} 39... Kd6 {[%clk 0:00:02.1]} 40. Qb6+ {[%clk 0:01:01]}
40... Ke5 {[%clk 0:00:02.8]} 41. Qxf6+ {[%clk 0:01:01.4]} 41... Kxf6 {[%clk
0:00:03.4]} 1-0

[Event "Late-Titled-Tuesday-Blitz-February-13-2024"]
[Site "Chess.com"]
[Date "2024.02.13"]
[Round "2"]
[White "traviscottofficial"]
[Black "Firouzja2003"]
[Result "1-0"]
[WhiteElo "2699"]
[BlackElo "3111"]
[TimeControl "180+1"]
[EndTime "14:16:46 PST"]
[Termination "traviscottofficial won by resignation"]

1. d4 {[%clk 0:02:59.3]} 1... g6 {[%clk 0:03:00.2]} 2. c4 {[%clk 0:02:59]} 2...
Bg7 {[%clk 0:03:00.9]} 3. Nc3 {[%clk 0:02:58.9]} 3... c5 {[%clk 0:03:01.5]} 4.
Nf3 {[%clk 0:02:58.2]} 4... cxd4 {[%clk 0:03:01.6]} 5. Nxd4 {[%clk 0:02:58.1]}
5... Nc6 {[%clk 0:03:02.5]} 6. e3 {[%clk 0:02:57.4]} 6... Nf6 {[%clk 0:03:02.8]}
7. Be2 {[%clk 0:02:57.6]} 7... O-O {[%clk 0:03:03.3]} 8. O-O {[%clk 0:02:58]}
8... d6 {[%clk 0:03:04]} 9. b3 {[%clk 0:02:57.1]} 9... Qa5 {[%clk 0:03:03.7]}
10. Bb2 {[%clk 0:02:56.3]} 10... Bd7 {[%clk 0:03:04.3]} 11. Qd2 {[%clk 0:02:48]}
11... Rab8 {[%clk 0:03:03.3]} 12. Rfd1 {[%clk 0:02:46.8]} 12... Rfc8 {[%clk
0:03:03.1]} 13. Rac1 {[%clk 0:02:44.4]} 13... a6 {[%clk 0:03:01.9]} 14. h3
{[%clk 0:02:24.8]} 14... Nxd4 {[%clk 0:02:58.6]} 15. Qxd4 {[%clk 0:02:01.1]}
15... Be6 {[%clk 0:02:58.6]} 16. a3 {[%clk 0:01:45.8]} 16... b5 {[%clk
0:02:49.2]} 17. b4 {[%clk 0:01:42.9]} 17... Qd8 {[%clk 0:02:49.1]} 18. cxb5
{[%clk 0:01:30.4]} 18... Nd5 {[%clk 0:02:30.9]} 19. Qd2 {[%clk 0:01:19.4]} 19...
Nxc3 {[%clk 0:02:30.5]} 20. Bxc3 {[%clk 0:01:19.6]} 20... Rxc3 {[%clk 0:02:29]}
21. Rxc3 {[%clk 0:01:19.1]} 21... Bxc3 {[%clk 0:02:29.9]} 22. Qxc3 {[%clk
0:01:19.2]} 22... axb5 {[%clk 0:02:30.8]} 23. Rc1 {[%clk 0:01:14.2]} 23... Rc8
{[%clk 0:02:26]} 24. Qd2 {[%clk 0:01:12.7]} 24... Bc4 {[%clk 0:02:26.6]} 25.
Bxc4 {[%clk 0:01:11.9]} 25... bxc4 {[%clk 0:02:27.5]} 26. a4 {[%clk 0:01:11.7]}
26... d5 {[%clk 0:02:26.3]} 27. b5 {[%clk 0:01:10.4]} 27... e5 {[%clk
0:02:25.9]} 28. Qb4 {[%clk 0:01:10.1]} 28... Qc7 {[%clk 0:00:55.7]} 29. b6
{[%clk 0:00:55.7]} 29... Qc6 {[%clk 0:00:55.7]} 30. a5 {[%clk 0:00:54]} 30...
Rb8 {[%clk 0:00:56.2]} 31. e4 {[%clk 0:00:44.6]} 31... Kg7 {[%clk 0:00:14.3]}
32. exd5 {[%clk 0:00:43.5]} 32... Qxd5 {[%clk 0:00:15.2]} 33. a6 {[%clk
0:00:42.1]} 33... c3 {[%clk 0:00:12.6]} 34. a7 {[%clk 0:00:39.6]} 34... Qd2
{[%clk 0:00:09.3]} 35. Qxc3 {[%clk 0:00:39.4]} 1-0

[Event "Late-Titled-Tuesday-Blitz-February-13-2024"]
[Site "Chess.com"]
[Date "2024.02.13"]
[Round "2"]
[White "PNEPaul"]
[Black "Nemsko"]
[Result "0-1"]
[WhiteElo "1901"]
[BlackElo "2400"]
[TimeControl "180+1"]
[EndTime "14:16:46 PST"]
[Termination "Nemsko won on time"]

1. e4 {[%clk 0:03:00.9]} 1... e5 {[%clk 0:02:59.6]} 2. Nf3 {[%clk 0:02:59.7]}
2... Nc6 {[%clk 0:02:59.2]} 3. Bc4 {[%clk 0:02:59.3]} 3... Bc5 {[%clk
0:02:57.1]} 4. b4 {[%clk 0:02:58.8]} 4... Bxb4 {[%clk 0:02:57]} 5. c3 {[%clk
0:02:58.9]} 5... Bd6 {[%clk 0:02:56.9]} 6. d4 {[%clk 0:02:57.8]} 6... Nf6 {[%clk
0:02:46.9]} 7. Bg5 {[%clk 0:02:56.5]} 7... h6 {[%clk 0:02:46.8]} 8. Bh4 {[%clk
0:02:56.3]} 8... Qe7 {[%clk 0:02:46.1]} 9. O-O {[%clk 0:02:55]} 9... O-O {[%clk
0:02:42.1]} 10. Nbd2 {[%clk 0:02:51.2]} 10... Kh7 {[%clk 0:02:39]} 11. Re1
{[%clk 0:02:45.8]} 11... Rg8 {[%clk 0:02:37.6]} 12. Bg3 {[%clk 0:02:30]} 12...
Re8 {[%clk 0:02:31.8]} 13. Nh4 {[%clk 0:02:29.3]} 13... g6 {[%clk 0:02:27.5]}
14. Bd3 {[%clk 0:02:17.1]} 14... Nh5 {[%clk 0:02:19.9]} 15. Nf5 {[%clk
0:02:04.6]} 15... Qf6 {[%clk 0:02:14.7]} 16. Nxd6 {[%clk 0:01:59.7]} 16... cxd6
{[%clk 0:02:03.7]} 17. Rf1 {[%clk 0:01:42.2]} 17... Nf4 {[%clk 0:01:41.2]} 18.
Bxf4 {[%clk 0:01:40.4]} 18... Qxf4 {[%clk 0:01:42.1]} 19. Qf3 {[%clk 0:01:16.4]}
19... Qxf3 {[%clk 0:01:33.3]} 20. Nxf3 {[%clk 0:01:15.4]} 20... b6 {[%clk
0:01:31.3]} 21. Rfe1 {[%clk 0:01:09.9]} 21... Bb7 {[%clk 0:01:30.2]} 22. Bc4
{[%clk 0:01:05.1]} 22... Kg7 {[%clk 0:01:29.3]} 23. Rad1 {[%clk 0:01:00.7]}
23... Rac8 {[%clk 0:01:18.6]} 24. Bb3 {[%clk 0:00:48.5]} 24... Rc7 {[%clk
0:01:13.5]} 25. Rc1 {[%clk 0:00:22.4]} 25... Na5 {[%clk 0:01:12.1]} 26. d5
{[%clk 0:00:18.9]} 26... Nc4 {[%clk 0:01:09]} 27. Bxc4 {[%clk 0:00:18.1]} 27...
Rxc4 {[%clk 0:01:09.9]} 28. Re3 {[%clk 0:00:16.5]} 28... Rec8 {[%clk 0:01:09.1]}
29. Nd2 {[%clk 0:00:16.1]} 29... Ra4 {[%clk 0:01:08.9]} 30. Rc2 {[%clk
0:00:14.5]} 30... Rc5 {[%clk 0:01:05.8]} 31. c4 {[%clk 0:00:14.1]} 31... b5
{[%clk 0:01:02.3]} 32. f3 {[%clk 0:00:09.6]} 32... bxc4 {[%clk 0:01:00.9]} 33.
Rec3 {[%clk 0:00:07.9]} 33... Ba6 {[%clk 0:01:00.9]} 34. Kf2 {[%clk 0:00:05.3]}
34... Bb5 {[%clk 0:00:53.7]} 35. Ke3 {[%clk 0:00:04.7]} 35... f5 {[%clk
0:00:49.8]} 36. g3 {[%clk 0:00:04.1]} 36... Kf6 {[%clk 0:00:49]} 37. h4 {[%clk
0:00:03.2]} 37... h5 {[%clk 0:00:46.7]} 0-1

[Event "Late-Titled-Tuesday-Blitz-February-13-2024"]
[Site "Chess.com"]
[Date "2024.02.13"]
[Round "2"]
[White "crazy_but_lazy"]
[Black "viniciusrego"]
[Result "0-1"]
[WhiteElo "2559"]
[BlackElo "2353"]
[TimeControl "180+1"]
[EndTime "14:16:47 PST"]
[Termination "viniciusrego won by resignation"]

1. d4 {[%clk 0:03:00.6]} 1... g6 {[%clk 0:03:00]} 2. e4 {[%clk 0:03:00.4]} 2...
c6 {[%clk 0:02:59.6]} 3. Nc3 {[%clk 0:02:59.5]} 3... d5 {[%clk 0:03:00]} 4. Nf3
{[%clk 0:02:59.2]} 4... Bg7 {[%clk 0:02:59.7]} 5. h3 {[%clk 0:02:59.5]} 5...
dxe4 {[%clk 0:02:58.4]} 6. Nxe4 {[%clk 0:03:00.4]} 6... Nd7 {[%clk 0:02:58.8]}
7. Bc4 {[%clk 0:02:57.9]} 7... Ngf6 {[%clk 0:02:59.2]} 8. Neg5 {[%clk
0:02:57.9]} 8... O-O {[%clk 0:02:58.6]} 9. O-O {[%clk 0:02:57.8]} 9... a5 {[%clk
0:02:55.6]} 10. Re1 {[%clk 0:02:57.3]} 10... Nb6 {[%clk 0:02:54.7]} 11. Bd3
{[%clk 0:02:53.9]} 11... a4 {[%clk 0:02:54.9]} 12. Ne5 {[%clk 0:02:50.9]} 12...
a3 {[%clk 0:02:53.1]} 13. c3 {[%clk 0:02:43.4]} 13... axb2 {[%clk 0:02:52.1]}
14. Bxb2 {[%clk 0:02:44.3]} 14... Na4 {[%clk 0:02:45.8]} 15. Rb1 {[%clk
0:02:40.2]} 15... Nd5 {[%clk 0:02:41.1]} 16. Bc4 {[%clk 0:01:58.7]} 16... f6
{[%clk 0:02:36.6]} 17. Nef3 {[%clk 0:01:49.4]} 17... fxg5 {[%clk 0:02:36]} 18.
Nxg5 {[%clk 0:01:50.3]} 18... e5 {[%clk 0:02:34]} 19. Nf3 {[%clk 0:01:47.2]}
19... exd4 {[%clk 0:02:30.1]} 20. Nxd4 {[%clk 0:01:47.5]} 20... Kh8 {[%clk
0:02:26.7]} 21. Qd2 {[%clk 0:01:34.2]} 21... Qf6 {[%clk 0:02:19]} 22. Ba1 {[%clk
0:01:31.7]} 22... Ndxc3 {[%clk 0:02:09.5]} 23. Nf3 {[%clk 0:01:04.8]} 23... Bxh3
{[%clk 0:02:03.4]} 24. Re3 {[%clk 0:01:02.8]} 24... Bxg2 {[%clk 0:02:00.5]} 25.
Kxg2 {[%clk 0:01:01.2]} 25... Nxb1 {[%clk 0:01:52.4]} 26. Bxf6 {[%clk
0:00:44.8]} 26... Nxd2 {[%clk 0:01:52.4]} 27. Bxg7+ {[%clk 0:00:44.7]} 27...
Kxg7 {[%clk 0:01:53.3]} 28. Nxd2 {[%clk 0:00:45.1]} 28... Rae8 {[%clk
0:01:50.3]} 29. Rg3 {[%clk 0:00:40.8]} 29... b5 {[%clk 0:01:49.5]} 30. Bb3
{[%clk 0:00:36.8]} 30... Nc5 {[%clk 0:01:49.8]} 31. Rc3 {[%clk 0:00:37.5]} 31...
Nxb3 {[%clk 0:01:47.6]} 32. axb3 {[%clk 0:00:37.6]} 32... Re6 {[%clk 0:01:47.3]}
33. Kg3 {[%clk 0:00:35.7]} 33... Rd8 {[%clk 0:01:46.5]} 34. Nf3 {[%clk
0:00:35.1]} 34... h6 {[%clk 0:01:46.1]} 35. b4 {[%clk 0:00:30.6]} 35... Kf6
{[%clk 0:01:45.4]} 36. Rc5 {[%clk 0:00:26.7]} 36... g5 {[%clk 0:01:45]} 37. Rc3
{[%clk 0:00:24.3]} 37... Rd5 {[%clk 0:01:43.6]} 38. Ng1 {[%clk 0:00:21.6]} 38...
Ke7 {[%clk 0:01:42.9]} 39. f3 {[%clk 0:00:17.6]} 39... Kd7 {[%clk 0:01:43.3]}
40. Nh3 {[%clk 0:00:18]} 40... Rd4 {[%clk 0:01:42.5]} 41. Rb3 {[%clk 0:00:16.7]}
41... Re2 {[%clk 0:01:37.9]} 42. Nf2 {[%clk 0:00:14.6]} 42... Rc2 {[%clk
0:01:35.9]} 43. Ng4 {[%clk 0:00:11.4]} 43... Rcc4 {[%clk 0:01:30.7]} 44. Nxh6
{[%clk 0:00:07.2]} 44... Rxb4 {[%clk 0:01:30.5]} 45. Re3 {[%clk 0:00:08]} 45...
Rf4 {[%clk 0:01:26.4]} 46. Ng4 {[%clk 0:00:05.9]} 46... Kd6 {[%clk 0:01:25.4]}
47. Ne5 {[%clk 0:00:05.5]} 47... Rbd4 {[%clk 0:01:22.2]} 48. Ng6 {[%clk
0:00:05.5]} 48... Rf6 {[%clk 0:01:21.7]} 49. Ne5 {[%clk 0:00:04.8]} 49... Re6
{[%clk 0:01:20]} 50. Nf7+ {[%clk 0:00:05.5]} 50... Ke7 {[%clk 0:01:20.1]} 51.
Rxe6+ {[%clk 0:00:05.3]} 51... Kxe6 {[%clk 0:01:21]} 52. Nxg5+ {[%clk
0:00:06.1]} 52... Kf5 {[%clk 0:01:20.8]} 53. Ne4 {[%clk 0:00:05.2]} 53... Rxe4
{[%clk 0:01:20.6]} 0-1

[Event "Late-Titled-Tuesday-Blitz-February-13-2024"]
[Site "Chess.com"]
[Date "2024.02.13"]
[Round "2"]
[White "Doomfist26"]
[Black "Harsha_Bharathakoti"]
[Result "1-0"]
[WhiteElo "2619"]
[BlackElo "2939"]
[TimeControl "180+1"]
[EndTime "14:16:48 PST"]
[Termination "Doomfist26 won by checkmate"]

1. e4 {[%clk 0:03:00.9]} 1... c5 {[%clk 0:02:56.5]} 2. Nf3 {[%clk 0:03:00.4]}
2... e6 {[%clk 0:02:57.3]} 3. d4 {[%clk 0:03:00]} 3... cxd4 {[%clk 0:02:58.2]}
4. Nxd4 {[%clk 0:03:00.6]} 4... a6 {[%clk 0:02:58.9]} 5. c4 {[%clk 0:03:00.7]}
5... Nf6 {[%clk 0:02:58.7]} 6. Nc3 {[%clk 0:03:01.3]} 6... Qc7 {[%clk
0:02:59.3]} 7. a3 {[%clk 0:03:01.8]} 7... b6 {[%clk 0:02:59.8]} 8. f4 {[%clk
0:02:59.4]} 8... Bb7 {[%clk 0:03:00.3]} 9. Bd3 {[%clk 0:02:59.8]} 9... d6 {[%clk
0:02:56.1]} 10. f5 {[%clk 0:03:00.1]} 10... e5 {[%clk 0:02:45.5]} 11. Nb3 {[%clk
0:02:43.7]} 11... Nbd7 {[%clk 0:02:43.2]} 12. O-O {[%clk 0:02:43.3]} 12... Be7
{[%clk 0:02:43.1]} 13. Bd2 {[%clk 0:02:42.4]} 13... h6 {[%clk 0:02:20.6]} 14.
Rc1 {[%clk 0:02:41.7]} 14... Nc5 {[%clk 0:02:12.8]} 15. Nxc5 {[%clk 0:02:40.2]}
15... bxc5 {[%clk 0:02:13.7]} 16. b4 {[%clk 0:02:38.7]} 16... O-O {[%clk
0:02:08.3]} 17. Nd5 {[%clk 0:02:27.8]} 17... Bxd5 {[%clk 0:01:43.5]} 18. cxd5
{[%clk 0:02:26.7]} 18... Nd7 {[%clk 0:01:44.2]} 19. g4 {[%clk 0:02:09.3]} 19...
Bg5 {[%clk 0:01:38.6]} 20. Bxg5 {[%clk 0:01:28.8]} 20... hxg5 {[%clk 0:01:39.5]}
21. f6 {[%clk 0:01:29.5]} 21... gxf6 {[%clk 0:01:30.5]} 22. Qd2 {[%clk
0:01:27.9]} 22... Kg7 {[%clk 0:01:21.5]} 23. h4 {[%clk 0:01:19.6]} 23... gxh4
{[%clk 0:01:00.3]} 24. g5 {[%clk 0:01:18.7]} 24... Rg8 {[%clk 0:00:59.9]} 25.
gxf6+ {[%clk 0:00:59.8]} 25... Kf8+ {[%clk 0:00:25]} 26. Kh2 {[%clk 0:00:58.9]}
26... Rg6 {[%clk 0:00:25.9]} 27. Rf5 {[%clk 0:00:45.8]} 27... Nxf6 {[%clk
0:00:26.2]} 28. Rcf1 {[%clk 0:00:45.5]} 28... Qe7 {[%clk 0:00:26.8]} 29. bxc5
{[%clk 0:00:41.4]} 29... dxc5 {[%clk 0:00:27.7]} 30. Be2 {[%clk 0:00:36.6]}
30... Rd8 {[%clk 0:00:13]} 31. Bh5 {[%clk 0:00:34]} 31... Nxh5 {[%clk
0:00:13.3]} 32. Rxh5 {[%clk 0:00:34.2]} 32... Kg7 {[%clk 0:00:10]} 33. Rg1
{[%clk 0:00:34.4]} 33... Rd6 {[%clk 0:00:08.3]} 34. Qh6+ {[%clk 0:00:34.5]}
34... Kf6 {[%clk 0:00:08.6]} 35. Rf5# {[%clk 0:00:33.9]} 1-0

[Event "Late-Titled-Tuesday-Blitz-February-13-2024"]
[Site "Chess.com"]
[Date "2024.02.13"]
[Round "2"]
[White "rdarruda"]
[Black "Sokoloco"]
[Result "0-1"]
[WhiteElo "2539"]
[BlackElo "2795"]
[TimeControl "180+1"]
[EndTime "14:16:48 PST"]
[Termination "Sokoloco won by resignation"]

1. Nf3 {[%clk 0:02:56.1]} 1... d6 {[%clk 0:02:59.4]} 2. d4 {[%clk 0:02:56.2]}
2... g6 {[%clk 0:02:59.7]} 3. Nc3 {[%clk 0:02:56.4]} 3... Bg7 {[%clk 0:02:59.8]}
4. e4 {[%clk 0:02:56.9]} 4... a6 {[%clk 0:03:00.5]} 5. Bg5 {[%clk 0:02:57]} 5...
b5 {[%clk 0:02:53.5]} 6. Qd2 {[%clk 0:02:57.2]} 6... Bb7 {[%clk 0:02:53.8]} 7.
O-O-O {[%clk 0:02:57.2]} 7... Nd7 {[%clk 0:02:53.5]} 8. e5 {[%clk 0:02:57.1]}
8... h6 {[%clk 0:02:46.8]} 9. Bh4 {[%clk 0:02:55.8]} 9... g5 {[%clk 0:01:37.9]}
10. Bg3 {[%clk 0:02:55]} 10... Nb6 {[%clk 0:01:33.8]} 11. e6 {[%clk 0:02:50.8]}
11... fxe6 {[%clk 0:01:33.5]} 12. Bd3 {[%clk 0:02:51.3]} 12... Kf7 {[%clk
0:01:24.7]} 13. Rhe1 {[%clk 0:02:47.4]} 13... Nf6 {[%clk 0:01:23.5]} 14. h4
{[%clk 0:02:35.3]} 14... g4 {[%clk 0:01:23.5]} 15. Ng1 {[%clk 0:02:31.6]} 15...
Bxg2 {[%clk 0:01:15]} 16. Nge2 {[%clk 0:02:27.8]} 16... Nbd5 {[%clk 0:00:55.9]}
17. Kb1 {[%clk 0:02:19.2]} 17... Bf3 {[%clk 0:00:50.9]} 18. Nxd5 {[%clk
0:02:08.5]} 18... exd5 {[%clk 0:00:47.8]} 19. Nf4 {[%clk 0:02:08.1]} 19... Ne4
{[%clk 0:00:45.6]} 20. Qe3 {[%clk 0:02:01.3]} 20... c6 {[%clk 0:00:41.4]} 21.
Be2 {[%clk 0:01:59.1]} 21... Bxe2 {[%clk 0:00:37.9]} 22. Qxe2 {[%clk 0:01:59.7]}
22... h5 {[%clk 0:00:36.1]} 23. f3 {[%clk 0:01:53.6]} 23... gxf3 {[%clk
0:00:36.4]} 24. Qxf3 {[%clk 0:01:53.4]} 24... Bf6 {[%clk 0:00:33.7]} 25. Nxh5
{[%clk 0:01:47.2]} 25... Qg8 {[%clk 0:00:33.9]} 26. Nxf6 {[%clk 0:01:43.9]}
26... Qxg3 {[%clk 0:00:27.6]} 27. Qxg3 {[%clk 0:01:24.3]} 27... Nxg3 {[%clk
0:00:28.5]} 28. Rg1 {[%clk 0:01:22.6]} 28... Ne2 {[%clk 0:00:18.7]} 29. Rg2
{[%clk 0:01:21]} 29... exf6 {[%clk 0:00:10]} 30. Rxe2 {[%clk 0:01:20.2]} 30...
Rxh4 {[%clk 0:00:10.9]} 31. Rde1 {[%clk 0:01:19.4]} 31... Ra7 {[%clk 0:00:11.6]}
32. c3 {[%clk 0:01:18.1]} 32... Re4 {[%clk 0:00:09.9]} 33. Rxe4 {[%clk
0:01:17.2]} 33... dxe4 {[%clk 0:00:10.8]} 34. Rxe4 {[%clk 0:01:17.5]} 34... Re7
{[%clk 0:00:11.7]} 35. Rh4 {[%clk 0:01:16.1]} 35... Kg6 {[%clk 0:00:12.2]} 36.
Kc2 {[%clk 0:01:13.3]} 36... f5 {[%clk 0:00:12.5]} 37. Kd2 {[%clk 0:01:12.7]}
37... Kg5 {[%clk 0:00:13.1]} 38. Rh8 {[%clk 0:01:12.7]} 38... f4 {[%clk
0:00:13.4]} 39. Rg8+ {[%clk 0:01:10.1]} 39... Kh4 {[%clk 0:00:13.4]} 40. Rg6
{[%clk 0:01:10.1]} 40... f3 {[%clk 0:00:10.2]} 41. Rxd6 {[%clk 0:01:08.3]} 41...
f2 {[%clk 0:00:10.9]} 42. Rf6 {[%clk 0:01:06.4]} 42... Kg3 {[%clk 0:00:11.6]}
43. b3 {[%clk 0:01:06.1]} 43... Kg2 {[%clk 0:00:11.8]} 44. c4 {[%clk 0:01:06.3]}
44... f1=Q {[%clk 0:00:10.8]} 45. Rxf1 {[%clk 0:01:06.2]} 45... Kxf1 {[%clk
0:00:11.7]} 46. Kd3 {[%clk 0:01:05.8]} 46... Kf2 {[%clk 0:00:11.2]} 47. d5
{[%clk 0:01:05.7]} 47... cxd5 {[%clk 0:00:10.9]} 48. cxd5 {[%clk 0:01:06.6]}
48... Re1 {[%clk 0:00:10.1]} 0-1

[Event "Late-Titled-Tuesday-Blitz-February-13-2024"]
[Site "Chess.com"]
[Date "2024.02.13"]
[Round "2"]
[White "Abduzhaparov"]
[Black "Njal28"]
[Result "0-1"]
[WhiteElo "2395"]
[BlackElo "2990"]
[TimeControl "180+1"]
[EndTime "14:16:49 PST"]
[Termination "Njal28 won on time"]

1. Nf3 {[%clk 0:03:00.9]} 1... Nf6 {[%clk 0:02:59.9]} 2. c4 {[%clk 0:03:01.8]}
2... g6 {[%clk 0:03:00.3]} 3. Nc3 {[%clk 0:03:01.8]} 3... Bg7 {[%clk 0:03:01.2]}
4. e4 {[%clk 0:03:02.3]} 4... d6 {[%clk 0:03:01.3]} 5. d4 {[%clk 0:03:03.2]}
5... O-O {[%clk 0:03:01.8]} 6. Be3 {[%clk 0:03:04.1]} 6... Nbd7 {[%clk
0:03:01.9]} 7. Nd2 {[%clk 0:03:03.1]} 7... c5 {[%clk 0:03:01.1]} 8. d5 {[%clk
0:03:03.1]} 8... a6 {[%clk 0:03:01.2]} 9. a4 {[%clk 0:03:02.5]} 9... e6 {[%clk
0:03:00.2]} 10. Be2 {[%clk 0:03:02]} 10... e5 {[%clk 0:02:59.5]} 11. g4 {[%clk
0:03:00.7]} 11... b6 {[%clk 0:02:57.7]} 12. h4 {[%clk 0:03:00.1]} 12... Ra7
{[%clk 0:02:55.4]} 13. h5 {[%clk 0:02:59.8]} 13... Ne8 {[%clk 0:02:54.2]} 14. h6
{[%clk 0:02:49.6]} 14... Bf6 {[%clk 0:02:53.7]} 15. Nf3 {[%clk 0:02:49.7]} 15...
Nb8 {[%clk 0:02:51.6]} 16. g5 {[%clk 0:02:47.9]} 16... Be7 {[%clk 0:02:48.4]}
17. Rg1 {[%clk 0:02:46.9]} 17... Kh8 {[%clk 0:02:47.5]} 18. Nh2 {[%clk
0:02:37.1]} 18... f5 {[%clk 0:02:46.2]} 19. gxf6 {[%clk 0:02:32.3]} 19... Nxf6
{[%clk 0:02:46.5]} 20. Ng4 {[%clk 0:02:27.3]} 20... Nxg4 {[%clk 0:02:38.7]} 21.
Bxg4 {[%clk 0:02:28.2]} 21... Bg5 {[%clk 0:02:37]} 22. Qd2 {[%clk 0:01:57.6]}
22... Bxe3 {[%clk 0:02:35.5]} 23. Qxe3 {[%clk 0:01:58.5]} 23... Bxg4 {[%clk
0:02:33.9]} 24. Rxg4 {[%clk 0:01:59.4]} 24... Raf7 {[%clk 0:02:34.1]} 25. Ke2
{[%clk 0:01:37.1]} 25... Nd7 {[%clk 0:02:27.2]} 26. Rag1 {[%clk 0:01:35.3]}
26... Nf6 {[%clk 0:02:27.3]} 27. Rg5 {[%clk 0:01:33.5]} 27... Nh5 {[%clk
0:02:26.5]} 28. Rxh5 {[%clk 0:01:33.3]} 28... gxh5 {[%clk 0:02:27.4]} 29. Qg3
{[%clk 0:01:29.4]} 29... Qf6 {[%clk 0:02:22.3]} 30. Nd1 {[%clk 0:01:11.3]} 30...
Qxh6 {[%clk 0:02:21.3]} 31. Ne3 {[%clk 0:01:09.8]} 31... Rxf2+ {[%clk
0:02:21.1]} 32. Qxf2 {[%clk 0:01:08.9]} 32... Rxf2+ {[%clk 0:02:22]} 33. Kxf2
{[%clk 0:01:09.4]} 33... Qf4+ {[%clk 0:02:22.9]} 34. Ke2 {[%clk 0:01:09.2]}
34... Qxe4 {[%clk 0:02:23.3]} 35. b3 {[%clk 0:01:04.4]} 35... h4 {[%clk
0:02:07.7]} 36. Rg4 {[%clk 0:01:03.9]} 36... Qh1 {[%clk 0:02:08]} 37. Nf5 {[%clk
0:00:57.7]} 37... Qh2+ {[%clk 0:02:08.2]} 38. Ke1 {[%clk 0:00:49.2]} 38... Qh3
{[%clk 0:01:58.8]} 39. Rg5 {[%clk 0:00:36.5]} 39... Qh1+ {[%clk 0:01:58.9]} 40.
Ke2 {[%clk 0:00:30.7]} 40... Qe4+ {[%clk 0:01:58.4]} 41. Kd1 {[%clk 0:00:26.2]}
41... Qb1+ {[%clk 0:01:55]} 42. Kd2 {[%clk 0:00:21.1]} 42... Qb2+ {[%clk
0:01:54.7]} 43. Kd1 {[%clk 0:00:16.7]} 43... Qxb3+ {[%clk 0:01:55]} 44. Ke2
{[%clk 0:00:13.5]} 44... Qxc4+ {[%clk 0:01:54.7]} 45. Kd1 {[%clk 0:00:11.7]}
45... Qxd5+ {[%clk 0:01:52.9]} 46. Kc2 {[%clk 0:00:10.2]} 46... Qa2+ {[%clk
0:01:53.2]} 47. Kd1 {[%clk 0:00:09.2]} 47... Qxa4+ {[%clk 0:01:53.5]} 48. Ke2
{[%clk 0:00:07.1]} 48... Qc4+ {[%clk 0:01:53.1]} 49. Kd1 {[%clk 0:00:07]} 49...
Qd3+ {[%clk 0:01:52.5]} 50. Kc1 {[%clk 0:00:04.6]} 50... Qf1+ {[%clk 0:01:49.6]}
51. Kc2 {[%clk 0:00:04.2]} 51... Qf2+ {[%clk 0:01:47.2]} 52. Kd1 {[%clk
0:00:04]} 52... Qf3+ {[%clk 0:01:47]} 53. Kc2 {[%clk 0:00:03.7]} 53... Qe4+
{[%clk 0:01:38.3]} 54. Kd1 {[%clk 0:00:04.2]} 54... Qf4 {[%clk 0:01:36.9]} 55.
Nh6 {[%clk 0:00:03.1]} 55... Qf8 {[%clk 0:01:23.5]} 0-1